Workbook

Sheet Start
A1: Altersstrukturanalyse in Unternehmen der Druckindustrie
A3: Unternehmen:
A4: Name und Funktion:
A5: Datum:
A6: Berater:
A9: Hinweise zum Fragebogen
A11: Die hier erhobenen Daten dienen zur Ableitung demografiebedingter Personal- und Organisationsentwicklungsmaßnahmen sowie der Darstellung vorhandener Kompetenzen in Ihrem Unternehmen.
A12: Auf Grundlage dieser Daten möchten wir mit Ihnen Handlungsfelder für eine nachhaltige Gestaltung der Personal- und Kompetenzentwicklung in Ihrem Unternehmen erarbeiten. Konkrete Vorschläge und Maßnahmen können in einem Abschlussgespräch entwickelt werden.
A13: Die Fragen behandeln folgende Themenbereiche:
A14: • Altersstrukturanalyse
A15: • Personalstruktur und Personalentwicklung
A17: Für die Erhebung der Daten ist die aktive Mitarbeit aller Beteiligten von besonderer Bedeutung. Daher sind alle Schritte im Vorfeld auch mit der Personalvertretung abzustimmen und den Mitarbeitern zu erläutern.
A19: Sämtliche Daten werden vertraulich behandelt. Vielen Dank für Ihre Mitarbeit!
A21: Hinweis zum Vollbildmodus: Diese Datei wird beim Öffnen automatisch im Vollbildmodus angezeigt. Sie können dies durch Drücken der Esc-Taste abstellen.
A22: Hinweis zur Navigation in Tabellen: Mit der Tastenkombination „STRG (Ctrl) + Bild ab" springen Sie zur nächsten Tabelle, mit „STRG (Ctrl) + Bild auf" zur vorhergehenden.

Sheet AS_1_Daten_Alterstruktur
A1: 1 Personalstruktur des Betriebes
A2: 1.1 Datenerfassung
A3: Bitte tragen Sie hier Ihre Abteilungen/Betriebsbereiche ein! Diese können dann den Daten Ihrer Mitarbeiter/innen zugeordnet werden.
A4: Vorstufe | B4: Druck | C4: Verarbeitung | D4: Digitale Medien | E4: Vertrieb | F4: Kaufmännisch
A6: Bitte geben Sie hier die statistischen Daten der Mitarbeiter/innen Ihres Unternehmens ein!
A7: Geburtsdaten | B7: Geschlecht | C7: Alter | D7: Abteilung/Bereich | P7: Geschlecht | Q7: Bereiche
A8: 1963-09-02 | B8: männlich | C8: =IF(ISNUMBER(A8),YEAR(TODAY())-YEAR(A8),"") -> 51 | D8: Kaufmännisch | P8: männlich | Q8: Vorstufe
A9: 1950-01-01 | B9: männlich | C9: =IF(ISNUMBER(A9),YEAR(TODAY())-YEAR(A9),"") -> 64 | D9: Kaufmännisch | P9: weiblich | Q9: Druck
A10: 1990-03-12 | B10: weiblich | C10: 24 | D10: Kaufmännisch | Q10: Verarbeitung
A11: 1970-01-15 | B11: männlich | C11: 44 | D11: Kaufmännisch | Q11: Digitale Medien
A12: 1958-01-17 | B12: weiblich | C12: 56 | D12: Kaufmännisch | Q12: Vertrieb
A13: 1950-05-05 | B13: männlich | C13: 64 | D13: Kaufmännisch | Q13: Kaufmännisch
A14: 1983-09-02 | B14: männlich | C14: 31 | D14: Kaufmännisch
A15: 1990-01-01 | B15: männlich | C15: 24 | D15: Kaufmännisch
A16: 1950-03-12 | B16: weiblich | C16: 64 | D16: Kaufmännisch
A17: 1970-01-15 | B17: männlich | C17: 44 | D17: Kaufmännisch
A18: 1958-01-17 | B18: weiblich | C18: 56 | D18: Kaufmännisch
A19: 1950-05-05 | B19: männlich | C19: 64 | D19: Kaufmännisch
A20: 1995-09-02 | B20: männlich | C20: 19 | D20: Kaufmännisch
A21: 1990-01-01 | B21: männlich | C21: 24 | D21: Kaufmännisch
A22: 1985-03-12 | B22: weiblich | C22: 29 | D22: Kaufmännisch
A23: 1980-01-15 | B23: männlich | C23: 34 | D23: Kaufmännisch
A24: 1994-01-17 | B24: weiblich | C24: 20 | D24: Kaufmännisch
A25: 1993-05-05 | B25: männlich | C25: 21 | D25: Kaufmännisch
A26: 1963-09-02 | B26: männlich | C26: 51 | D26: Vorstufe
A27: 1950-01-01 | B27: männlich | C27: 64 | D27: Vorstufe
A28: 1990-03-12 | B28: weiblich | C28: 24 | D28: Vorstufe
A29: 1970-01-15 | B29: männlich | C29: 44 | D29: Vorstufe
A30: 1958-01-17 | B30: weiblich | C30: 56 | D30: Vorstufe
A31: 1950-05-05 | B31: männlich | C31: 64 | D31: Vorstufe
A32: 1983-09-02 | B32: männlich | C32: 31 | D32: Vorstufe
A33: 1990-01-01 | B33: männlich | C33: 24 | D33: Vorstufe
A34: 1950-03-12 | B34: weiblich | C34: 64 | D34: Vorstufe
A35: 1970-01-15 | B35: männlich | C35: 44 | D35: Vorstufe
A36: 1958-01-17 | B36: weiblich | C36: 56 | D36: Vorstufe
A37: 1950-05-05 | B37: männlich | C37: 64 | D37: Vorstufe
A38: 1995-09-02 | B38: männlich | C38: 19 | D38: Druck
A39: 1990-01-01 | B39: männlich | C39: 24 | D39: Druck
A40: 1985-03-12 | B40: weiblich | C40: 29 | D40: Druck
A41: 1980-01-15 | B41: männlich | C41: 34 | D41: Druck
A42: 1994-01-17 | B42: weiblich | C42: 20 | D42: Druck
A43: 1993-05-05 | B43: männlich | C43: 21 | D43: Druck
A44: 1963-09-02 | B44: männlich | C44: 51 | D44: Verarbeitung
A45: 1950-01-01 | B45: männlich | C45: 64 | D45: Verarbeitung
A46: 1990-03-12 | B46: weiblich | C46: 24 | D46: Verarbeitung
A47: 1970-01-15 | B47: männlich | C47: 44 | D47: Verarbeitung
A48: 1958-01-17 | B48: weiblich | C48: 56 | D48: Verarbeitung
A49: 1950-05-05 | B49: männlich | C49: 64 | D49: Verarbeitung
A50: 1983-09-02 | B50: männlich | C50: 31 | D50: Verarbeitung
A51: 1990-01-01 | B51: männlich | C51: 24 | D51: Verarbeitung
A52: 1950-03-12 | B52: weiblich | C52: 64 | D52: Verarbeitung
A53: 1970-01-15 | B53: männlich | C53: 44 | D53: Verarbeitung
A54: 1958-01-17 | B54: weiblich | C54: 56 | D54: Verarbeitung
A55: 1950-05-05 | B55: männlich | C55: 64 | D55: Verarbeitung
A56: 1995-09-02 | B56: männlich | C56: 19 | D56: Verarbeitung
A57: 1990-01-01 | B57: männlich | C57: 24 | D57: Verarbeitung
A58: 1985-03-12 | B58: weiblich | C58: 29 | D58: Verarbeitung
A59: 1980-01-15 | B59: männlich | C59: 34 | D59: Verarbeitung
A60: 1994-01-17 | B60: weiblich | C60: 20 | D60: Verarbeitung
A61: 1993-05-05 | B61: männlich | C61: 21 | D61: Verarbeitung
A62: 1963-09-02 | B62: männlich | C62: 51 | D62: Verarbeitung
A63: 1950-01-01 | B63: männlich | C63: 64 | D63: Verarbeitung
A64: 1990-03-12 | B64: weiblich | C64: 24 | D64: Verarbeitung
A65: 1970-01-15 | B65: männlich | C65: 44 | D65: Verarbeitung
A66: 1958-01-17 | B66: weiblich | C66: 56 | D66: Verarbeitung
A67: 1950-05-05 | B67: männlich | C67: 64 | D67: Verarbeitung
A68: 1983-09-02 | B68: männlich | C68: 31 | D68: Verarbeitung
A69: 1990-01-01 | B69: männlich | C69: 24 | D69: Verarbeitung
A70: 1950-03-12 | B70: weiblich | C70: 64 | D70: Verarbeitung
A71: 1970-01-15 | B71: männlich | C71: 44 | D71: Verarbeitung
A72: 1958-01-17 | B72: weiblich | C72: 56 | D72: Verarbeitung
A73: 1950-05-05 | B73: männlich | C73: =IF(ISNUMBER(A73),YEAR(TODAY())-YEAR(A73),"") -> 64 | D73: Verarbeitung
A74: 1995-09-02 | B74: männlich | C74: 19 | D74: Verarbeitung
A75: 1990-01-01 | B75: männlich | C75: 24 | D75: Verarbeitung
A76: 1985-03-12 | B76: weiblich | C76: 29 | D76: Verarbeitung
A77: 1980-01-15 | B77: männlich | C77: 34 | D77: Druck
A78: 1994-01-17 | B78: weiblich | C78: 20 | D78: Druck
A79: 1993-05-05 | B79: männlich | C79: 21 | D79: Druck
A80: 1985-03-12 | B80: weiblich | C80: 29 | D80: Digitale Medien
A81: 1980-01-15 | B81: männlich | C81: 34 | D81: Digitale Medien
A82: 1994-01-17 | B82: weiblich | C82: 20 | D82: Digitale Medien
A83: 1993-05-05 | B83: männlich | C83: 21 | D83: Digitale Medien
A84: 1963-09-02 | B84: männlich | C84: 51 | D84: Digitale Medien
A85: 1950-01-01 | B85: männlich | C85: 64 | D85: Digitale Medien
A86: 1990-03-12 | B86: weiblich | C86: 24 | D86: Digitale Medien
A87: 1970-01-15 | B87: männlich | C87: 44 | D87: Digitale Medien
A88: 1958-01-17 | B88: weiblich | C88: 56 | D88: Digitale Medien
A89: 1950-05-05 | B89: männlich | C89: 64 | D89: Digitale Medien
A90: 1983-09-02 | B90: männlich | C90: 31 | D90: Digitale Medien
A91: 1990-01-01 | B91: männlich | C91: 24 | D91: Digitale Medien
A92: 1950-03-12 | B92: weiblich | C92: 64 | D92: Digitale Medien
A93: 1970-01-15 | B93: männlich | C93: 44 | D93: Digitale Medien
A94: 1958-01-17 | B94: weiblich | C94: 56 | D94: Digitale Medien
A95: 1950-05-05 | B95: männlich | C95: 64 | D95: Digitale Medien
A96: 1995-09-02 | B96: männlich | C96: 19 | D96: Digitale Medien
A97: 1990-01-01 | B97: männlich | C97: 24 | D97: Digitale Medien
A98: 1985-03-12 | B98: weiblich | C98: 29 | D98: Digitale Medien
A99: 1980-01-15 | B99: männlich | C99: 34 | D99: Digitale Medien
A100: 1994-01-17 | B100: weiblich | C100: 20 | D100: Digitale Medien
A101: 1993-05-05 | B101: männlich | C101: 21 | D101: Digitale Medien
A102: 1963-09-02 | B102: männlich | C102: 51 | D102: Digitale Medien
A103: 1950-01-01 | B103: männlich | C103: 64 | D103: Digitale Medien
A104: 1990-03-12 | B104: weiblich | C104: 24 | D104: Digitale Medien
A105: 1970-01-15 | B105: männlich | C105: 44 | D105: Digitale Medien
A106: 1958-01-17 | B106: weiblich | C106: 56 | D106: Digitale Medien
A107: 1950-05-05 | B107: männlich | C107: 64 | D107: Digitale Medien
A108: 1983-09-02 | B108: männlich | C108: 31 | D108: Digitale Medien
A109: 1990-01-01 | B109: männlich | C109: 24 | D109: Digitale Medien
A110: 1950-03-12 | B110: weiblich | C110: 64 | D110: Digitale Medien
A111: 1970-01-15 | B111: männlich | C111: 44 | D111: Digitale Medien
A112: 1958-01-17 | B112: weiblich | C112: 56 | D112: Digitale Medien
A113: 1950-05-05 | B113: männlich | C113: 64 | D113: Digitale Medien
A114: 1995-09-02 | B114: männlich | C114: 19 | D114: Digitale Medien
A115: 1990-01-01 | B115: männlich | C115: 24 | D115: Digitale Medien
A116: 1985-03-12 | B116: weiblich | C116: 29 | D116: Digitale Medien
A117: 1980-01-15 | B117: männlich | C117: 34 | D117: Digitale Medien
A118: 1994-01-17 | B118: weiblich | C118: 20 | D118: Druck
A119: 1993-05-05 | B119: männlich | C119: 21 | D119: Druck
A120: 1950-05-05 | B120: männlich | C120: 64 | D120: Vertrieb
A121: 1995-09-02 | B121: männlich | C121: 19 | D121: Vertrieb
A122: 1990-01-01 | B122: männlich | C122: 24 | D122: Vertrieb
A123: 1985-03-12 | B123: weiblich | C123: 29 | D123: Vertrieb
A124: 1980-01-15 | B124: männlich | C124: 34 | D124: Vertrieb
A125: 1994-01-17 | B125: weiblich | C125: 20 | D125: Vertrieb
A126: 1993-05-05 | B126: männlich | C126: 21 | D126: Vertrieb
A127: 1963-09-02 | B127: männlich | C127: 51 | D127: Vertrieb
A128: 1950-01-01 | B128: männlich | C128: 64 | D128: Vertrieb
A129: 1990-03-12 | B129: weiblich | C129: 24 | D129: Vertrieb
A130: 1970-01-15 | B130: männlich | C130: 44 | D130: Vertrieb
A131: 1958-01-17 | B131: weiblich | C131: 56 | D131: Vertrieb
A132: 1950-05-05 | B132: männlich | C132: 64 | D132: Vertrieb
A133: 1983-09-02 | B133: männlich | C133: 31 | D133: Vertrieb
A134: 1990-01-01 | B134: männlich | C134: 24 | D134: Vertrieb
A135: 1950-03-12 | B135: weiblich | C135: 64 | D135: Vertrieb
A136: 1970-01-15 | B136: männlich | C136: 44 | D136: Vertrieb
A137: 1958-01-17 | B137: weiblich | C137: =IF(ISNUMBER(A137),YEAR(TODAY())-YEAR(A137),"") -> 56 | D137: Vertrieb
A138: 1950-05-05 | B138: männlich | C138: 64 | D138: Vertrieb
A139: 1995-09-02 | B139: männlich | C139: 19 | D139: Vertrieb
A140: 1990-01-01 | B140: männlich | C140: 24 | D140: Vertrieb
A141: 1985-03-12 | B141: weiblich | C141: 29 | D141: Vertrieb
A142: 1980-01-15 | B142: männlich | C142: 34 | D142: Vertrieb
A143: 1994-01-17 | B143: weiblich | C143: 20 | D143: Vertrieb
A144: 1993-05-05 | B144: männlich | C144: 21 | D144: Vertrieb
A145: 1963-09-02 | B145: männlich | C145: 51 | D145: Vertrieb
A146: 1950-01-01 | B146: männlich | C146: 64 | D146: Vertrieb
A147: 1990-03-12 | B147: weiblich | C147: 24 | D147: Vertrieb
A148: 1970-01-15 | B148: männlich | C148: 44 | D148: Vertrieb
A149: 1958-01-17 | B149: weiblich | C149: 56 | D149: Vertrieb
A150: 1950-05-05 | B150: männlich | C150: 64 | D150: Vertrieb
A151: 1983-09-02 | B151: männlich | C151: 31 | D151: Vertrieb
A152: 1990-01-01 | B152: männlich | C152: 24 | D152: Vertrieb
A153: 1950-03-12 | B153: weiblich | C153: 64 | D153: Vertrieb
C201: =IF(ISNUMBER(A201),YEAR(TODAY())-YEAR(A201),"") -> 
C265: =IF(ISNUMBER(A265),YEAR(TODAY())-YEAR(A265),"") -> 
A308: Anzahl | B308: =SUBTOTAL(3,B8:B306) -> 146 | D308: =SUBTOTAL(3,D8:D306) -> 146
A309: Durchschnitt | C309: =SUBTOTAL(1,C8:C306) -> 40.19178082

Sheet AS_2_Ergebnis_Altersstruktur
A1: 1.2 Allgemeine Personalstruktur, Abteilungen und Altersstruktur
A3: Abteilung/Bereich: | C3: =AS_1_Daten_Alterstruktur!A4 -> Vorstufe | G3: Durchschnittsalter gesamt: | J3: 39.72222222
A4: Altersklassen | B4: Frauen | C4: Männer | D4: Gesamt | E4: In %
A5: unter 25 | B5: =COUNTIFS(AS_1_Daten_Alterstruktur!$C$8:$C$306,"<25",AS_1_Daten_Alterstruktur!$B$8:$B$306,"weiblich",AS_1_Daten_Alterstruktur!$D$8:$D$306,$C$3) -> 1 | C5: =COUNTIFS(AS_1_Daten_Alterstruktur!$C$8:$C$306,"<25",AS_1_Daten_Alterstruktur!$B$8:$B$306,"männlich",AS_1_Daten_Alterstruktur!$D$8:$D$306,$C$3) -> 1 | D5: =COUNTIFS(AS_1_Daten_Alterstruktur!$C$8:$C$306,"<25",AS_1_Daten_Alterstruktur!$D$8:$D$306,$C$3) -> 2 | E5: =IF($D$10=0,"",D5/$D$10) -> 0.1666666667
A6: 25-34 | B6: =COUNTIFS(AS_1_Daten_Alterstruktur!$C$8:$C$306,">=25",AS_1_Daten_Alterstruktur!$C$8:$C$306,"<=34",AS_1_Daten_Alterstruktur!$D$8:$D$306,$C$3,AS_1_Daten_Alterstruktur!$B$8:$B$306,"weiblich") -> 0 | C6: =COUNTIFS(AS_1_Daten_Alterstruktur!$C$8:$C$306,">=25",AS_1_Daten_Alterstruktur!$C$8:$C$306,"<=34",AS_1_Daten_Alterstruktur!$D$8:$D$306,$C$3,AS_1_Daten_Alterstruktur!$B$8:$B$306,"männlich") -> 1 | D6: =COUNTIFS(AS_1_Daten_Alterstruktur!$C$8:$C$306,">=25",AS_1_Daten_Alterstruktur!$C$8:$C$306,"<=34",AS_1_Daten_Alterstruktur!$D$8:$D$306,$C$3) -> 1 | E6: 0.08333333333
A7: 35-44 | B7: =COUNTIFS(AS_1_Daten_Alterstruktur!$C$8:$C$306,">=35",AS_1_Daten_Alterstruktur!$C$8:$C$306,"<=44",AS_1_Daten_Alterstruktur!$D$8:$D$306,$C$3,AS_1_Daten_Alterstruktur!$B$8:$B$306,"weiblich") -> 0 | C7: =COUNTIFS(AS_1_Daten_Alterstruktur!$C$8:$C$306,">=35",AS_1_Daten_Alterstruktur!$C$8:$C$306,"<=44",AS_1_Daten_Alterstruktur!$D$8:$D$306,$C$3,AS_1_Daten_Alterstruktur!$B$8:$B$306,"männlich") -> 2 | D7: =COUNTIFS(AS_1_Daten_Alterstruktur!$C$8:$C$306,">=35",AS_1_Daten_Alterstruktur!$C$8:$C$306,"<=44",AS_1_Daten_Alterstruktur!$D$8:$D$306,$C$3) -> 2 | E7: 0.1666666667
A8: 45-54 | B8: =COUNTIFS(AS_1_Daten_Alterstruktur!$C$8:$C$306,">=45",AS_1_Daten_Alterstruktur!$C$8:$C$306,"<=54",AS_1_Daten_Alterstruktur!$D$8:$D$306,$C$3,AS_1_Daten_Alterstruktur!$B$8:$B$306,"weiblich") -> 0 | C8: =COUNTIFS(AS_1_Daten_Alterstruktur!$C$8:$C$306,">=45",AS_1_Daten_Alterstruktur!$C$8:$C$306,"<=54",AS_1_Daten_Alterstruktur!$D$8:$D$306,$C$3,AS_1_Daten_Alterstruktur!$B$8:$B$306,"männlich") -> 1 | D8: =COUNTIFS(AS_1_Daten_Alterstruktur!$C$8:$C$306,">=45",AS_1_Daten_Alterstruktur!$C$8:$C$306,"<=54",AS_1_Daten_Alterstruktur!$D$8:$D$306,$C$3) -> 1 | E8: 0.08333333333
A9: 55 und älter | B9: =COUNTIFS(AS_1_Daten_Alterstruktur!$C$8:$C$306,">=55",AS_1_Daten_Alterstruktur!$B$8:$B$306,"weiblich",AS_1_Daten_Alterstruktur!$D$8:$D$306,$C$3) -> 3 | C9: =COUNTIFS(AS_1_Daten_Alterstruktur!$C$8:$C$306,">=55",AS_1_Daten_Alterstruktur!$B$8:$B$306,"männlich",AS_1_Daten_Alterstruktur!$D$8:$D$306,$C$3) -> 3 | D9: =COUNTIFS(AS_1_Daten_Alterstruktur!$C$8:$C$306,">=55",AS_1_Daten_Alterstruktur!$D$8:$D$306,$C$3) -> 6 | E9: 0.5
A10: Gesamt | B10: =SUM(B5:B9) -> 4 | C10: =SUM(C5:C9) -> 8 | D10: =SUM(D5:D9) -> 12 | E10: 1
A12: Abteilung/Bereich: | C12: =AS_1_Daten_Alterstruktur!B4 -> Druck
A13: Altersklassen | B13: Frauen | C13: Männer | D13: Gesamt | E13: In %
A14: unter 25 | B14: =COUNTIFS(AS_1_Daten_Alterstruktur!$C$8:$C$306,"<25",AS_1_Daten_Alterstruktur!$B$8:$B$306,"weiblich",AS_1_Daten_Alterstruktur!$D$8:$D$306,C12) -> 3 | C14: =COUNTIFS(AS_1_Daten_Alterstruktur!$C$8:$C$306,"<25",AS_1_Daten_Alterstruktur!$B$8:$B$306,"männlich",AS_1_Daten_Alterstruktur!$D$8:$D$306,C12) -> 5 | D14: =COUNTIFS(AS_1_Daten_Alterstruktur!$C$8:$C$306,"<25",AS_1_Daten_Alterstruktur!$D$8:$D$306,C12) -> 8 | E14: =IF($D$19=0,"",D14/$D$19) -> 0.7272727273
A15: 25-34 | B15: =COUNTIFS(AS_1_Daten_Alterstruktur!$C$8:$C$306,">=25",AS_1_Daten_Alterstruktur!$C$8:$C$306,"<=34",AS_1_Daten_Alterstruktur!$D$8:$D$306,C12,AS_1_Daten_Alterstruktur!$B$8:$B$306,"weiblich") -> 1 | C15: =COUNTIFS(AS_1_Daten_Alterstruktur!$C$8:$C$306,">=25",AS_1_Daten_Alterstruktur!$C$8:$C$306,"<=34",AS_1_Daten_Alterstruktur!$D$8:$D$306,C12,AS_1_Daten_Alterstruktur!$B$8:$B$306,"männlich") -> 2 | D15: =COUNTIFS(AS_1_Daten_Alterstruktur!$C$8:$C$306,">=25",AS_1_Daten_Alterstruktur!$C$8:$C$306,"<=34",AS_1_Daten_Alterstruktur!$D$8:$D$306,C12) -> 3 | E15: 0.2727272727
A16: 35-44 | B16: =COUNTIFS(AS_1_Daten_Alterstruktur!$C$8:$C$306,">=35",AS_1_Daten_Alterstruktur!$C$8:$C$306,"<=44",AS_1_Daten_Alterstruktur!$D$8:$D$306,C12,AS_1_Daten_Alterstruktur!$B$8:$B$306,"weiblich") -> 0 | C16: =COUNTIFS(AS_1_Daten_Alterstruktur!$C$8:$C$306,">=35",AS_1_Daten_Alterstruktur!$C$8:$C$306,"<=44",AS_1_Daten_Alterstruktur!$D$8:$D$306,C12,AS_1_Daten_Alterstruktur!$B$8:$B$306,"männlich") -> 0 | D16: =COUNTIFS(AS_1_Daten_Alterstruktur!$C$8:$C$306,">=35",AS_1_Daten_Alterstruktur!$C$8:$C$306,"<=44",AS_1_Daten_Alterstruktur!$D$8:$D$306,C12) -> 0 | E16: 0
A17: 45-54 | B17: =COUNTIFS(AS_1_Daten_Alterstruktur!$C$8:$C$306,">=45",AS_1_Daten_Alterstruktur!$C$8:$C$306,"<=54",AS_1_Daten_Alterstruktur!$D$8:$D$306,C12,AS_1_Daten_Alterstruktur!$B$8:$B$306,"weiblich") -> 0 | C17: =COUNTIFS(AS_1_Daten_Alterstruktur!$C$8:$C$306,">=45",AS_1_Daten_Alterstruktur!$C$8:$C$306,"<=54",AS_1_Daten_Alterstruktur!$D$8:$D$306,C12,AS_1_Daten_Alterstruktur!$B$8:$B$306,"männlich") -> 0 | D17: =COUNTIFS(AS_1_Daten_Alterstruktur!$C$8:$C$306,">=45",AS_1_Daten_Alterstruktur!$C$8:$C$306,"<=54",AS_1_Daten_Alterstruktur!$D$8:$D$306,C12) -> 0 | E17: 0
A18: 55 und älter | B18: =COUNTIFS(AS_1_Daten_Alterstruktur!$C$8:$C$306,">=55",AS_1_Daten_Alterstruktur!$B$8:$B$306,"weiblich",AS_1_Daten_Alterstruktur!$D$8:$D$306,C12) -> 0 | C18: =COUNTIFS(AS_1_Daten_Alterstruktur!$C$8:$C$306,">=55",AS_1_Daten_Alterstruktur!$B$8:$B$306,"männlich",AS_1_Daten_Alterstruktur!$D$8:$D$306,C12) -> 0 | D18: =COUNTIFS(AS_1_Daten_Alterstruktur!$C$8:$C$306,">=55",AS_1_Daten_Alterstruktur!$D$8:$D$306,C12) -> 0 | E18: 0
A19: Gesamt | B19: =SUM(B14:B18) -> 4 | C19: =SUM(C14:C18) -> 7 | D19: =SUM(D14:D18) -> 11 | E19: 1
A21: Abteilung/Bereich: | C21: =AS_1_Daten_Alterstruktur!C4 -> Verarbeitung
A22: Altersklassen | B22: Frauen | C22: Männer | D22: Gesamt | E22: In % | G22: Altersklassen | H22: Frauen | I22: Männer | J22: Gesamt | K22: In %
A23: unter 25 | B23: =COUNTIFS(AS_1_Daten_Alterstruktur!$C$8:$C$306,"<25",AS_1_Daten_Alterstruktur!$B$8:$B$306,"weiblich",AS_1_Daten_Alterstruktur!$D$8:$D$306,C21) -> 3 | C23: =COUNTIFS(AS_1_Daten_Alterstruktur!$C$8:$C$306,"<25",AS_1_Daten_Alterstruktur!$B$8:$B$306,"männlich",AS_1_Daten_Alterstruktur!$D$8:$D$306,C21) -> 7 | D23: =COUNTIFS(AS_1_Daten_Alterstruktur!$C$8:$C$306,"<25",AS_1_Daten_Alterstruktur!$D$8:$D$306,C21) -> 10 | E23: =IF($D$28=0,"",D23/$D$28) -> 0.303030303 | G23: unter 25 | H23: =B5+B14+B23+B35+B44+B53 -> 17 | I23: 33 | J23: =SUM(H23:I23) -> 50 | K23: =J23/$J$28 -> 0.3424657534
A24: 25-34 | B24: =COUNTIFS(AS_1_Daten_Alterstruktur!$C$8:$C$306,">=25",AS_1_Daten_Alterstruktur!$C$8:$C$306,"<=34",AS_1_Daten_Alterstruktur!$D$8:$D$306,C21,AS_1_Daten_Alterstruktur!$B$8:$B$306,"weiblich") -> 2 | C24: =COUNTIFS(AS_1_Daten_Alterstruktur!$C$8:$C$306,">=25",AS_1_Daten_Alterstruktur!$C$8:$C$306,"<=34",AS_1_Daten_Alterstruktur!$D$8:$D$306,C21,AS_1_Daten_Alterstruktur!$B$8:$B$306,"männlich") -> 3 | D24: =COUNTIFS(AS_1_Daten_Alterstruktur!$C$8:$C$306,">=25",AS_1_Daten_Alterstruktur!$C$8:$C$306,"<=34",AS_1_Daten_Alterstruktur!$D$8:$D$306,C21) -> 5 | E24: 0.1515151515 | G24: 25-34 | H24: 9 | I24: 17 | J24: =SUM(H24:I24) -> 26 | K24: 0.1780821918
A25: 35-44 | B25: =COUNTIFS(AS_1_Daten_Alterstruktur!$C$8:$C$306,">=35",AS_1_Daten_Alterstruktur!$C$8:$C$306,"<=44",AS_1_Daten_Alterstruktur!$D$8:$D$306,C21,AS_1_Daten_Alterstruktur!$B$8:$B$306,"weiblich") -> 0 | C25: =COUNTIFS(AS_1_Daten_Alterstruktur!$C$8:$C$306,">=35",AS_1_Daten_Alterstruktur!$C$8:$C$306,"<=44",AS_1_Daten_Alterstruktur!$D$8:$D$306,C21,AS_1_Daten_Alterstruktur!$B$8:$B$306,"männlich") -> 4 | D25: =COUNTIFS(AS_1_Daten_Alterstruktur!$C$8:$C$306,">=35",AS_1_Daten_Alterstruktur!$C$8:$C$306,"<=44",AS_1_Daten_Alterstruktur!$D$8:$D$306,C21) -> 4 | E25: 0.1212121212 | G25: 35-44 | H25: 0 | I25: 15 | J25: 15 | K25: 0.102739726
A26: 45-54 | B26: =COUNTIFS(AS_1_Daten_Alterstruktur!$C$8:$C$306,">=45",AS_1_Daten_Alterstruktur!$C$8:$C$306,"<=54",AS_1_Daten_Alterstruktur!$D$8:$D$306,C21,AS_1_Daten_Alterstruktur!$B$8:$B$306,"weiblich") -> 0 | C26: =COUNTIFS(AS_1_Daten_Alterstruktur!$C$8:$C$306,">=45",AS_1_Daten_Alterstruktur!$C$8:$C$306,"<=54",AS_1_Daten_Alterstruktur!$D$8:$D$306,C21,AS_1_Daten_Alterstruktur!$B$8:$B$306,"männlich") -> 2 | D26: =COUNTIFS(AS_1_Daten_Alterstruktur!$C$8:$C$306,">=45",AS_1_Daten_Alterstruktur!$C$8:$C$306,"<=54",AS_1_Daten_Alterstruktur!$D$8:$D$306,C21) -> 2 | E26: 0.06060606061 | G26: 45-54 | H26: 0 | I26: 8 | J26: 8 | K26: 0.05479452055
A27: 55 und älter | B27: =COUNTIFS(AS_1_Daten_Alterstruktur!$C$8:$C$306,">=55",AS_1_Daten_Alterstruktur!$B$8:$B$306,"weiblich",AS_1_Daten_Alterstruktur!$D$8:$D$306,C21) -> 6 | C27: =COUNTIFS(AS_1_Daten_Alterstruktur!$C$8:$C$306,">=55",AS_1_Daten_Alterstruktur!$B$8:$B$306,"männlich",AS_1_Daten_Alterstruktur!$D$8:$D$306,C21) -> 6 | D27: =COUNTIFS(AS_1_Daten_Alterstruktur!$C$8:$C$306,">=55",AS_1_Daten_Alterstruktur!$D$8:$D$306,C21) -> 12 | E27: 0.3636363636 | G27: 55 und älter | H27: 23 | I27: 24 | J27: 47 | K27: 0.3219178082
A28: Gesamt | B28: =SUM(B23:B27) -> 11 | C28: =SUM(C23:C27) -> 22 | D28: =SUM(D23:D27) -> 33 | E28: 1 | G28: Gesamt | H28: =SUM(H23:H27) -> 49 | I28: =SUM(I23:I27) -> 97 | J28: =SUM(J23:J27) -> 146 | K28: 1
A33: Abteilung/Bereich: | C33: =AS_1_Daten_Alterstruktur!D4 -> Digitale Medien
A34: Altersklassen | B34: Frauen | C34: Männer | D34: Gesamt | E34: In % | G34: Durchschnittsalter: | I34: Frauen | J34: Männer | K34: Gesamt
A35: unter 25 | B35: =COUNTIFS(AS_1_Daten_Alterstruktur!$C$8:$C$306,"<25",AS_1_Daten_Alterstruktur!$B$8:$B$306,"weiblich",AS_1_Daten_Alterstruktur!$D$8:$D$306,C33) -> 4 | C35: =COUNTIFS(AS_1_Daten_Alterstruktur!$C$8:$C$306,"<25",AS_1_Daten_Alterstruktur!$B$8:$B$306,"männlich",AS_1_Daten_Alterstruktur!$D$8:$D$306,C33) -> 8 | D35: =COUNTIFS(AS_1_Daten_Alterstruktur!$C$8:$C$306,"<25",AS_1_Daten_Alterstruktur!$D$8:$D$306,C33) -> 12 | E35: =IF($D$40=0,"",D35/$D$40) -> 0.3157894737 | I35: =SUMIFS(AS_1_Daten_Alterstruktur!C8:C306,AS_1_Daten_Alterstruktur!B8:B306,"weiblich")/COUNTIF(AS_1_Daten_Alterstruktur!B7:B306,"weiblich") -> 40.51020408 | J35: =SUMIFS(AS_1_Daten_Alterstruktur!C8:C306,AS_1_Daten_Alterstruktur!B8:B306,"männlich")/COUNTIF(AS_1_Daten_Alterstruktur!B7:B306,"männlich") -> 40.03092784 | K35: =SUM(AS_1_Daten_Alterstruktur!C8:C306)/COUNTA(AS_1_Daten_Alterstruktur!B8:B306) -> 40.19178082
A36: 25-34 | B36: =COUNTIFS(AS_1_Daten_Alterstruktur!$C$8:$C$306,">=25",AS_1_Daten_Alterstruktur!$C$8:$C$306,"<=34",AS_1_Daten_Alterstruktur!$D$8:$D$306,C33,AS_1_Daten_Alterstruktur!$B$8:$B$306,"weiblich") -> 3 | C36: =COUNTIFS(AS_1_Daten_Alterstruktur!$C$8:$C$306,">=25",AS_1_Daten_Alterstruktur!$C$8:$C$306,"<=34",AS_1_Daten_Alterstruktur!$D$8:$D$306,C33,AS_1_Daten_Alterstruktur!$B$8:$B$306,"männlich") -> 5 | D36: =COUNTIFS(AS_1_Daten_Alterstruktur!$C$8:$C$306,">=25",AS_1_Daten_Alterstruktur!$C$8:$C$306,"<=34",AS_1_Daten_Alterstruktur!$D$8:$D$306,C33) -> 8 | E36: 0.2105263158
A37: 35-44 | B37: =COUNTIFS(AS_1_Daten_Alterstruktur!$C$8:$C$306,">=35",AS_1_Daten_Alterstruktur!$C$8:$C$306,"<=44",AS_1_Daten_Alterstruktur!$D$8:$D$306,C33,AS_1_Daten_Alterstruktur!$B$8:$B$306,"weiblich") -> 0 | C37: =COUNTIFS(AS_1_Daten_Alterstruktur!$C$8:$C$306,">=35",AS_1_Daten_Alterstruktur!$C$8:$C$306,"<=44",AS_1_Daten_Alterstruktur!$D$8:$D$306,C33,AS_1_Daten_Alterstruktur!$B$8:$B$306,"männlich") -> 4 | D37: =COUNTIFS(AS_1_Daten_Alterstruktur!$C$8:$C$306,">=35",AS_1_Daten_Alterstruktur!$C$8:$C$306,"<=44",AS_1_Daten_Alterstruktur!$D$8:$D$306,C33) -> 4 | E37: 0.1052631579
A38: 45-54 | B38: =COUNTIFS(AS_1_Daten_Alterstruktur!$C$8:$C$306,">=45",AS_1_Daten_Alterstruktur!$C$8:$C$306,"<=54",AS_1_Daten_Alterstruktur!$D$8:$D$306,C33,AS_1_Daten_Alterstruktur!$B$8:$B$306,"weiblich") -> 0 | C38: =COUNTIFS(AS_1_Daten_Alterstruktur!$C$8:$C$306,">=45",AS_1_Daten_Alterstruktur!$C$8:$C$306,"<=54",AS_1_Daten_Alterstruktur!$D$8:$D$306,C33,AS_1_Daten_Alterstruktur!$B$8:$B$306,"männlich") -> 2 | D38: =COUNTIFS(AS_1_Daten_Alterstruktur!$C$8:$C$306,">=45",AS_1_Daten_Alterstruktur!$C$8:$C$306,"<=54",AS_1_Daten_Alterstruktur!$D$8:$D$306,C33) -> 2 | E38: 0.05263157895
A39: 55 und älter | B39: =COUNTIFS(AS_1_Daten_Alterstruktur!$C$8:$C$306,">=55",AS_1_Daten_Alterstruktur!$B$8:$B$306,"weiblich",AS_1_Daten_Alterstruktur!$D$8:$D$306,C33) -> 6 | C39: =COUNTIFS(AS_1_Daten_Alterstruktur!$C$8:$C$306,">=55",AS_1_Daten_Alterstruktur!$B$8:$B$306,"männlich",AS_1_Daten_Alterstruktur!$D$8:$D$306,C33) -> 6 | D39: =COUNTIFS(AS_1_Daten_Alterstruktur!$C$8:$C$306,">=55",AS_1_Daten_Alterstruktur!$D$8:$D$306,C33) -> 12 | E39: 0.3157894737
A40: Gesamt | B40: =SUM(B35:B39) -> 13 | C40: =SUM(C35:C39) -> 25 | D40: =SUM(D35:D39) -> 38 | E40: 1
A42: Abteilung/Bereich: | C42: =AS_1_Daten_Alterstruktur!E4 -> Vertrieb
A43: Altersklassen | B43: Frauen | C43: Männer | D43: Gesamt | E43: In % | G43: Übersicht Alterstruktur Abteilungen/Bereiche:
A44: unter 25 | B44: =COUNTIFS(AS_1_Daten_Alterstruktur!$C$8:$C$306,"<25",AS_1_Daten_Alterstruktur!$B$8:$B$306,"weiblich",AS_1_Daten_Alterstruktur!$D$8:$D$306,C42) -> 4 | C44: =COUNTIFS(AS_1_Daten_Alterstruktur!$C$8:$C$306,"<25",AS_1_Daten_Alterstruktur!$B$8:$B$306,"männlich",AS_1_Daten_Alterstruktur!$D$8:$D$306,C42) -> 8 | D44: =COUNTIFS(AS_1_Daten_Alterstruktur!$C$8:$C$306,"<25",AS_1_Daten_Alterstruktur!$D$8:$D$306,C42) -> 12 | E44: =IF($D$49=0,"",D44/$D$49) -> 0.3529411765 | H44: =C3 -> Vorstufe | I44: =C12 -> Druck | J44: =C21 -> Verarbeitung | K44: =C33 -> Digitale Medien | L44: =C42 -> Vertrieb | M44: =C51 -> Kaufmännisch
A45: 25-34 | B45: =COUNTIFS(AS_1_Daten_Alterstruktur!$C$8:$C$306,">=25",AS_1_Daten_Alterstruktur!$C$8:$C$306,"<=34",AS_1_Daten_Alterstruktur!$D$8:$D$306,C42,AS_1_Daten_Alterstruktur!$B$8:$B$306,"weiblich") -> 2 | C45: =COUNTIFS(AS_1_Daten_Alterstruktur!$C$8:$C$306,">=25",AS_1_Daten_Alterstruktur!$C$8:$C$306,"<=34",AS_1_Daten_Alterstruktur!$D$8:$D$306,C42,AS_1_Daten_Alterstruktur!$B$8:$B$306,"männlich") -> 4 | D45: =COUNTIFS(AS_1_Daten_Alterstruktur!$C$8:$C$306,">=25",AS_1_Daten_Alterstruktur!$C$8:$C$306,"<=34",AS_1_Daten_Alterstruktur!$D$8:$D$306,C42) -> 6 | E45: 0.1764705882 | G45: unter 25 | H45: =IF($D$10=0,"",D5/$D$10) -> 0.1666666667 | I45: =IF($D$19=0,"",D14/$D$19) -> 0.7272727273 | J45: =IF($D$28=0,"",D23/$D$28) -> 0.303030303 | K45: =IF($D$40=0,"",D35/$D$40) -> 0.3157894737 | L45: =IF($D$49=0,"",D44/$D$49) -> 0.3529411765 | M45: =IF($D$58=0,"",D53/$D$58) -> 0.3333333333
A46: 35-44 | B46: =COUNTIFS(AS_1_Daten_Alterstruktur!$C$8:$C$306,">=35",AS_1_Daten_Alterstruktur!$C$8:$C$306,"<=44",AS_1_Daten_Alterstruktur!$D$8:$D$306,C42,AS_1_Daten_Alterstruktur!$B$8:$B$306,"weiblich") -> 0 | C46: =COUNTIFS(AS_1_Daten_Alterstruktur!$C$8:$C$306,">=35",AS_1_Daten_Alterstruktur!$C$8:$C$306,"<=44",AS_1_Daten_Alterstruktur!$D$8:$D$306,C42,AS_1_Daten_Alterstruktur!$B$8:$B$306,"männlich") -> 3 | D46: =COUNTIFS(AS_1_Daten_Alterstruktur!$C$8:$C$306,">=35",AS_1_Daten_Alterstruktur!$C$8:$C$306,"<=44",AS_1_Daten_Alterstruktur!$D$8:$D$306,C42) -> 3 | E46: 0.08823529412 | G46: 25-34 | H46: =IF($D$10=0,"",D6/$D$10) -> 0.08333333333 | I46: =IF($D$19=0,"",D15/$D$19) -> 0.2727272727 | J46: =IF($D$28=0,"",D24/$D$28) -> 0.1515151515 | K46: =IF($D$40=0,"",D36/$D$40) -> 0.2105263158 | L46: =IF($D$49=0,"",D45/$D$49) -> 0.1764705882 | M46: =IF($D$58=0,"",D54/$D$58) -> 0.1666666667
A47: 45-54 | B47: =COUNTIFS(AS_1_Daten_Alterstruktur!$C$8:$C$306,">=45",AS_1_Daten_Alterstruktur!$C$8:$C$306,"<=54",AS_1_Daten_Alterstruktur!$D$8:$D$306,C42,AS_1_Daten_Alterstruktur!$B$8:$B$306,"weiblich") -> 0 | C47: =COUNTIFS(AS_1_Daten_Alterstruktur!$C$8:$C$306,">=45",AS_1_Daten_Alterstruktur!$C$8:$C$306,"<=54",AS_1_Daten_Alterstruktur!$D$8:$D$306,C42,AS_1_Daten_Alterstruktur!$B$8:$B$306,"männlich") -> 2 | D47: =COUNTIFS(AS_1_Daten_Alterstruktur!$C$8:$C$306,">=45",AS_1_Daten_Alterstruktur!$C$8:$C$306,"<=54",AS_1_Daten_Alterstruktur!$D$8:$D$306,C42) -> 2 | E47: 0.05882352941 | G47: 35-44 | H47: =IF($D$10=0,"",D7/$D$10) -> 0.1666666667 | I47: =IF($D$19=0,"",D16/$D$19) -> 0 | J47: =IF($D$28=0,"",D25/$D$28) -> 0.1212121212 | K47: =IF($D$40=0,"",D37/$D$40) -> 0.1052631579 | L47: =IF($D$49=0,"",D46/$D$49) -> 0.08823529412 | M47: =IF($D$58=0,"",D55/$D$58) -> 0.1111111111
A48: 55 und älter | B48: =COUNTIFS(AS_1_Daten_Alterstruktur!$C$8:$C$306,">=55",AS_1_Daten_Alterstruktur!$B$8:$B$306,"weiblich",AS_1_Daten_Alterstruktur!$D$8:$D$306,C42) -> 5 | C48: =COUNTIFS(AS_1_Daten_Alterstruktur!$C$8:$C$306,">=55",AS_1_Daten_Alterstruktur!$B$8:$B$306,"männlich",AS_1_Daten_Alterstruktur!$D$8:$D$306,C42) -> 6 | D48: =COUNTIFS(AS_1_Daten_Alterstruktur!$C$8:$C$306,">=55",AS_1_Daten_Alterstruktur!$D$8:$D$306,C42) -> 11 | E48: 0.3235294118 | G48: 45-54 | H48: =IF($D$10=0,"",D8/$D$10) -> 0.08333333333 | I48: =IF($D$19=0,"",D17/$D$19) -> 0 | J48: =IF($D$28=0,"",D26/$D$28) -> 0.06060606061 | K48: =IF($D$40=0,"",D38/$D$40) -> 0.05263157895 | L48: =IF($D$49=0,"",D47/$D$49) -> 0.05882352941 | M48: =IF($D$58=0,"",D56/$D$58) -> 0.05555555556
A49: Gesamt | B49: =SUM(B44:B48) -> 11 | C49: =SUM(C44:C48) -> 23 | D49: =SUM(D44:D48) -> 34 | E49: 1 | G49: 55 und älter | H49: =IF($D$10=0,"",D9/$D$10) -> 0.5 | I49: =IF($D$19=0,"",D18/$D$19) -> 0 | J49: =IF($D$28=0,"",D27/$D$28) -> 0.3636363636 | K49: =IF($D$40=0,"",D39/$D$40) -> 0.3157894737 | L49: =IF($D$49=0,"",D48/$D$49) -> 0.3235294118 | M49: =IF($D$58=0,"",D57/$D$58) -> 0.3333333333
A51: Abteilung/Bereich: | C51: =AS_1_Daten_Alterstruktur!F4 -> Kaufmännisch
A52: Altersklassen | B52: Frauen | C52: Männer | D52: Gesamt | E52: In %
A53: unter 25 | B53: =COUNTIFS(AS_1_Daten_Alterstruktur!$C$8:$C$306,"<25",AS_1_Daten_Alterstruktur!$B$8:$B$306,"weiblich",AS_1_Daten_Alterstruktur!$D$8:$D$306,C51) -> 2 | C53: =COUNTIFS(AS_1_Daten_Alterstruktur!$C$8:$C$306,"<25",AS_1_Daten_Alterstruktur!$B$8:$B$306,"männlich",AS_1_Daten_Alterstruktur!$D$8:$D$306,C51) -> 4 | D53: =COUNTIFS(AS_1_Daten_Alterstruktur!$C$8:$C$306,"<25",AS_1_Daten_Alterstruktur!$D$8:$D$306,C51) -> 6 | E53: =IF($D$58=0,"",D53/$D$58) -> 0.3333333333
A54: 25-34 | B54: =COUNTIFS(AS_1_Daten_Alterstruktur!$C$8:$C$306,">=25",AS_1_Daten_Alterstruktur!$C$8:$C$306,"<=34",AS_1_Daten_Alterstruktur!$D$8:$D$306,C51,AS_1_Daten_Alterstruktur!$B$8:$B$306,"weiblich") -> 1 | C54: =COUNTIFS(AS_1_Daten_Alterstruktur!$C$8:$C$306,">=25",AS_1_Daten_Alterstruktur!$C$8:$C$306,"<=34",AS_1_Daten_Alterstruktur!$D$8:$D$306,C51,AS_1_Daten_Alterstruktur!$B$8:$B$306,"männlich") -> 2 | D54: =COUNTIFS(AS_1_Daten_Alterstruktur!$C$8:$C$306,">=25",AS_1_Daten_Alterstruktur!$C$8:$C$306,"<=34",AS_1_Daten_Alterstruktur!$D$8:$D$306,C51) -> 3 | E54: 0.1666666667
A55: 35-44 | B55: =COUNTIFS(AS_1_Daten_Alterstruktur!$C$8:$C$306,">=35",AS_1_Daten_Alterstruktur!$C$8:$C$306,"<=44",AS_1_Daten_Alterstruktur!$D$8:$D$306,C51,AS_1_Daten_Alterstruktur!$B$8:$B$306,"weiblich") -> 0 | C55: =COUNTIFS(AS_1_Daten_Alterstruktur!$C$8:$C$306,">=35",AS_1_Daten_Alterstruktur!$C$8:$C$306,"<=44",AS_1_Daten_Alterstruktur!$D$8:$D$306,C51,AS_1_Daten_Alterstruktur!$B$8:$B$306,"männlich") -> 2 | D55: =COUNTIFS(AS_1_Daten_Alterstruktur!$C$8:$C$306,">=35",AS_1_Daten_Alterstruktur!$C$8:$C$306,"<=44",AS_1_Daten_Alterstruktur!$D$8:$D$306,C51) -> 2 | E55: 0.1111111111
A56: 45-54 | B56: =COUNTIFS(AS_1_Daten_Alterstruktur!$C$8:$C$306,">=45",AS_1_Daten_Alterstruktur!$C$8:$C$306,"<=54",AS_1_Daten_Alterstruktur!$D$8:$D$306,C51,AS_1_Daten_Alterstruktur!$B$8:$B$306,"weiblich") -> 0 | C56: =COUNTIFS(AS_1_Daten_Alterstruktur!$C$8:$C$306,">=45",AS_1_Daten_Alterstruktur!$C$8:$C$306,"<=54",AS_1_Daten_Alterstruktur!$D$8:$D$306,C51,AS_1_Daten_Alterstruktur!$B$8:$B$306,"männlich") -> 1 | D56: =COUNTIFS(AS_1_Daten_Alterstruktur!$C$8:$C$306,">=45",AS_1_Daten_Alterstruktur!$C$8:$C$306,"<=54",AS_1_Daten_Alterstruktur!$D$8:$D$306,C51) -> 1 | E56: 0.05555555556
A57: 55 und älter | B57: =COUNTIFS(AS_1_Daten_Alterstruktur!$C$8:$C$306,">=55",AS_1_Daten_Alterstruktur!$B$8:$B$306,"weiblich",AS_1_Daten_Alterstruktur!$D$8:$D$306,C51) -> 3 | C57: =COUNTIFS(AS_1_Daten_Alterstruktur!$C$8:$C$306,">=55",AS_1_Daten_Alterstruktur!$B$8:$B$306,"männlich",AS_1_Daten_Alterstruktur!$D$8:$D$306,C51) -> 3 | D57: =COUNTIFS(AS_1_Daten_Alterstruktur!$C$8:$C$306,">=55",AS_1_Daten_Alterstruktur!$D$8:$D$306,C51) -> 6 | E57: 0.3333333333
A58: Gesamt | B58: =SUM(B53:B57) -> 6 | C58: =SUM(C53:C57) -> 12 | D58: =SUM(D53:D57) -> 18 | E58: 1

Sheet AS_3_Ergebnis _Gesamt
A1: 1.3 Allgemeine Personalstruktur, Altersstruktur heute und in Zukunft
A3: Altersklassen heute
B7: Altersklassen | C7: Gesamt | D7: In % | G7: Durchschnittsalter gesamt: | J7: =AS_2_Ergebnis_Altersstruktur!K35 -> 40.19178082
B8: unter 25 | C8: =COUNTIFS(AS_1_Daten_Alterstruktur!$C$8:$C$306,"<25") -> 50 | D8: =C8/$C$13 -> 0.3424657534
B9: 25-34 | C9: =COUNTIFS(AS_1_Daten_Alterstruktur!$C$8:$C$306,">=25",AS_1_Daten_Alterstruktur!$C$8:$C$306,"<=34") -> 26 | D9: 0.1780821918 | G9: =COUNTIF(AS_1_Daten_Alterstruktur!$C$8:$C$306,">=65") -> 0 | H9: Personen altersbedingt ausgeschieden (>=65 Jahre)
B10: 35-44 | C10: =COUNTIFS(AS_1_Daten_Alterstruktur!$C$8:$C$306,">=35",AS_1_Daten_Alterstruktur!$C$8:$C$306,"<=44") -> 15 | D10: 0.102739726
B11: 45-54 | C11: =COUNTIFS(AS_1_Daten_Alterstruktur!$C$8:$C$306,">=45",AS_1_Daten_Alterstruktur!$C$8:$C$306,"<=54") -> 8 | D11: 0.05479452055
B12: 55 und älter | C12: =COUNTIFS(AS_1_Daten_Alterstruktur!$C$8:$C$306,">=55") -> 47 | D12: 0.3219178082
B13: Gesamt | C13: =SUM(C8:C12) -> 146 | D13: 1
A18: Ausgehend vom heutigen Stand*
A20: Altersklassen in 3 Jahren
B23: Altersklassen | C23: Gesamt | D23: In %
B24: unter 25 | C24: =COUNTIFS(AS_1_Daten_Alterstruktur!$C$8:$C$306,"<22") -> 26 | D24: =C24/$C$13 -> 0.1780821918 | G24: Durchschnittsalter gesamt: | J24: =SUMIF(AS_1_Daten_Alterstruktur!$C$8:$C$306,"<62")/(COUNT(AS_1_Daten_Alterstruktur!$C$8:$C$306)-G26)+3 -> 36.50877193
B25: 25-34 | C25: =COUNTIFS(AS_1_Daten_Alterstruktur!$C$8:$C$306,">=22",AS_1_Daten_Alterstruktur!$C$8:$C$306,"<=31") -> 41 | D25: 0.2808219178
B26: 35-44 | C26: =COUNTIFS(AS_1_Daten_Alterstruktur!$C$8:$C$306,">=32",AS_1_Daten_Alterstruktur!$C$8:$C$306,"<=41") -> 9 | D26: 0.06164383562 | G26: =COUNTIF(AS_1_Daten_Alterstruktur!$C$8:$C$306,">=62") -> 32 | H26: Personen altersbedingt ausgeschieden (>=62 Jahre)
B27: 45-54 | C27: =COUNTIFS(AS_1_Daten_Alterstruktur!$C$8:$C$306,">=42",AS_1_Daten_Alterstruktur!$C$8:$C$306,"<=51") -> 23 | D27: 0.1575342466
B28: 55 und älter | C28: =COUNTIFS(AS_1_Daten_Alterstruktur!$C$8:$C$306,">=52",AS_1_Daten_Alterstruktur!$C$8:$C$306,"<62") -> 15 | D28: 0.102739726
B29: Gesamt | C29: =SUM(C24:C28) -> 114 | D29: 0.7808219178
A35: Altersklassen in 5 Jahren
B37: Altersklassen | C37: Gesamt | D37: In %
B38: unter 25 | C38: =COUNTIFS(AS_1_Daten_Alterstruktur!$C$8:$C$306,"<20") -> 8 | D38: =C38/$C$13 -> 0.05479452055
B39: 25-34 | C39: =COUNTIFS(AS_1_Daten_Alterstruktur!$C$8:$C$306,">=20",AS_1_Daten_Alterstruktur!$C$8:$C$306,"<=29") -> 51 | D39: 0.3493150685 | G39: Durchschnittsalter gesamt: | J39: =SUMIF(AS_1_Daten_Alterstruktur!$C$8:$C$306,"<60")/(COUNT(AS_1_Daten_Alterstruktur!$C$8:$C$306)-G41)+5 -> 38.50877193
B40: 35-44 | C40: =COUNTIFS(AS_1_Daten_Alterstruktur!$C$8:$C$306,">=30",AS_1_Daten_Alterstruktur!$C$8:$C$306,"<=39") -> 17 | D40: 0.1164383562
B41: 45-54 | C41: =COUNTIFS(AS_1_Daten_Alterstruktur!$C$8:$C$306,">=40",AS_1_Daten_Alterstruktur!$C$8:$C$306,"<=49") -> 15 | D41: 0.102739726 | G41: =COUNTIF(AS_1_Daten_Alterstruktur!$C$8:$C$306,">=60") -> 32 | H41: Personen altersbedingt ausgeschieden (>=60 Jahre)
B42: 55 und älter | C42: =COUNTIFS(AS_1_Daten_Alterstruktur!$C$8:$C$306,">=50",AS_1_Daten_Alterstruktur!$C$8:$C$306,"<60") -> 23 | D42: 0.1575342466
B43: Gesamt | C43: =SUM(C38:C42) -> 114 | D43: 0.7808219178
A109: * Ohne Berücksichtigung von geplanten Arbeitsplatzauf- bzw. abbau

Sheet AS_4_Ergebnis_Abteilungen
A1: 1.3 Allgemeine Personalstruktur, Altersstruktur heute und in Zukunft
B3: Abteilung | C3: =AS_1_Daten_Alterstruktur!A4 -> Vorstufe
B6: Altersklassen | C6: Gesamt | D6: In % | G6: Altersklassen | H6: Gesamt | I6: In % | L6: Altersklassen | M6: Gesamt | N6: In %
B7: unter 25 | C7: =COUNTIFS(AS_1_Daten_Alterstruktur!$C$8:$C$306,"<25",AS_1_Daten_Alterstruktur!$D$8:$D$306,$C$3) -> 2 | D7: =C7/$C$12 -> 0.1666666667 | G7: unter 25 | H7: =COUNTIFS(AS_1_Daten_Alterstruktur!$C$8:$C$306,"<22",AS_1_Daten_Alterstruktur!$D$8:$D$306,$C$3) -> 0 | I7: =H7/$H$12 -> 0 | L7: unter 25 | M7: =COUNTIFS(AS_1_Daten_Alterstruktur!$C$8:$C$306,"<20",AS_1_Daten_Alterstruktur!$D$8:$D$306,$C$3) -> 0 | N7: =M7/$M$12 -> 0
B8: 25-34 | C8: =COUNTIFS(AS_1_Daten_Alterstruktur!$C$8:$C$306,">=25",AS_1_Daten_Alterstruktur!$C$8:$C$306,"<=34",AS_1_Daten_Alterstruktur!$D$8:$D$306,$C$3) -> 1 | D8: 0.08333333333 | G8: 25-34 | H8: =COUNTIFS(AS_1_Daten_Alterstruktur!$C$8:$C$306,">=22",AS_1_Daten_Alterstruktur!$C$8:$C$306,"<=31",AS_1_Daten_Alterstruktur!$D$8:$D$306,$C$3) -> 3 | I8: 0.375 | L8: 25-34 | M8: =COUNTIFS(AS_1_Daten_Alterstruktur!$C$8:$C$306,">=20",AS_1_Daten_Alterstruktur!$C$8:$C$306,"<=29",AS_1_Daten_Alterstruktur!$D$8:$D$306,$C$3) -> 2 | N8: =M8/$M$12 -> 0.25
B9: 35-44 | C9: =COUNTIFS(AS_1_Daten_Alterstruktur!$C$8:$C$306,">=35",AS_1_Daten_Alterstruktur!$C$8:$C$306,"<=44",AS_1_Daten_Alterstruktur!$D$8:$D$306,$C$3) -> 2 | D9: 0.1666666667 | G9: 35-44 | H9: =COUNTIFS(AS_1_Daten_Alterstruktur!$C$8:$C$306,">=32",AS_1_Daten_Alterstruktur!$C$8:$C$306,"<=41",AS_1_Daten_Alterstruktur!$D$8:$D$306,$C$3) -> 0 | I9: 0 | L9: 35-44 | M9: =COUNTIFS(AS_1_Daten_Alterstruktur!$C$8:$C$306,">=30",AS_1_Daten_Alterstruktur!$C$8:$C$306,"<=39",AS_1_Daten_Alterstruktur!$D$8:$D$306,$C$3) -> 1 | N9: 0.125
B10: 45-54 | C10: =COUNTIFS(AS_1_Daten_Alterstruktur!$C$8:$C$306,">=45",AS_1_Daten_Alterstruktur!$C$8:$C$306,"<=54",AS_1_Daten_Alterstruktur!$D$8:$D$306,$C$3) -> 1 | D10: 0.08333333333 | G10: 45-54 | H10: =COUNTIFS(AS_1_Daten_Alterstruktur!$C$8:$C$306,">=42",AS_1_Daten_Alterstruktur!$C$8:$C$306,"<=51",AS_1_Daten_Alterstruktur!$D$8:$D$306,$C$3) -> 3 | I10: 0.375 | L10: 45-54 | M10: =COUNTIFS(AS_1_Daten_Alterstruktur!$C$8:$C$306,">=40",AS_1_Daten_Alterstruktur!$C$8:$C$306,"<=49",AS_1_Daten_Alterstruktur!$D$8:$D$306,$C$3) -> 2 | N10: 0.25
B11: 55 und älter | C11: =COUNTIFS(AS_1_Daten_Alterstruktur!$C$8:$C$306,">=55",AS_1_Daten_Alterstruktur!$D$8:$D$306,$C$3) -> 6 | D11: 0.5 | G11: 55 und älter | H11: =COUNTIFS(AS_1_Daten_Alterstruktur!$C$8:$C$306,">=52",AS_1_Daten_Alterstruktur!$D$8:$D$306,$C$3,AS_1_Daten_Alterstruktur!$C$8:$C$306,"<62") -> 2 | I11: 0.25 | L11: 55 und älter | M11: =COUNTIFS(AS_1_Daten_Alterstruktur!$C$8:$C$306,">=50",AS_1_Daten_Alterstruktur!$D$8:$D$306,$C$3,AS_1_Daten_Alterstruktur!$C$8:$C$306,"<60") -> 3 | N11: 0.375
B12: Gesamt | C12: =SUM(C7:C11) -> 12 | D12: 1 | G12: Gesamt | H12: =SUM(H7:H11) -> 8 | I12: 1 | L12: Gesamt | M12: =SUM(M7:M11) -> 8 | N12: 1
B18: Abteilung | C18: =AS_1_Daten_Alterstruktur!B4 -> Druck
B21: Altersklassen | C21: Gesamt | D21: In % | G21: Altersklassen | H21: Gesamt | I21: In % | L21: Altersklassen | M21: Gesamt | N21: In %
B22: unter 25 | C22: =COUNTIFS(AS_1_Daten_Alterstruktur!$C$8:$C$306,"<25",AS_1_Daten_Alterstruktur!$D$8:$D$306,C18) -> 8 | D22: =C22/$C$27 -> 0.7272727273 | G22: unter 25 | H22: =COUNTIFS(AS_1_Daten_Alterstruktur!$C$8:$C$306,"<22",AS_1_Daten_Alterstruktur!$D$8:$D$306,C18) -> 7 | I22: =H22/$H$27 -> 0.5384615385 | L22: unter 25 | M22: =COUNTIFS(AS_1_Daten_Alterstruktur!$C$8:$C$306,"<20",AS_1_Daten_Alterstruktur!$D$8:$D$306,C18) -> 1 | N22: =M22/$M$27 -> 0.07142857143
B23: 25-34 | C23: =COUNTIFS(AS_1_Daten_Alterstruktur!$C$8:$C$306,">=25",AS_1_Daten_Alterstruktur!$C$8:$C$306,"<=34",AS_1_Daten_Alterstruktur!$D$8:$D$306,C18) -> 3 | D23: =C23/$C$27 -> 0.2727272727 | G23: 25-34 | H23: =COUNTIFS(AS_1_Daten_Alterstruktur!$C$8:$C$306,">=22",AS_1_Daten_Alterstruktur!$C$8:$C$306,"<=31",AS_1_Daten_Alterstruktur!$D$8:$D$306,C18) -> 2 | I23: =H23/$H$27 -> 0.1538461538 | L23: 25-34 | M23: =COUNTIFS(AS_1_Daten_Alterstruktur!$C$8:$C$306,">=20",AS_1_Daten_Alterstruktur!$C$8:$C$306,"<=29",AS_1_Daten_Alterstruktur!$D$8:$D$306,C18) -> 8 | N23: =M23/$M$27 -> 0.5714285714
B24: 35-44 | C24: =COUNTIFS(AS_1_Daten_Alterstruktur!$C$8:$C$306,">=35",AS_1_Daten_Alterstruktur!$C$8:$C$306,"<=44",AS_1_Daten_Alterstruktur!$D$8:$D$306,C18) -> 0 | D24: 0 | G24: 35-44 | H24: =COUNTIFS(AS_1_Daten_Alterstruktur!$C$8:$C$306,">=32",AS_1_Daten_Alterstruktur!$C$8:$C$306,"<=41",AS_1_Daten_Alterstruktur!$D$8:$D$306,C18) -> 2 | I24: 0.1538461538 | L24: 35-44 | M24: =COUNTIFS(AS_1_Daten_Alterstruktur!$C$8:$C$306,">=30",AS_1_Daten_Alterstruktur!$C$8:$C$306,"<=39",AS_1_Daten_Alterstruktur!$D$8:$D$306,C18) -> 2 | N24: 0.1428571429
B25: 45-54 | C25: =COUNTIFS(AS_1_Daten_Alterstruktur!$C$8:$C$306,">=45",AS_1_Daten_Alterstruktur!$C$8:$C$306,"<=54",AS_1_Daten_Alterstruktur!$D$8:$D$306,C18) -> 0 | D25: 0 | G25: 45-54 | H25: =COUNTIFS(AS_1_Daten_Alterstruktur!$C$8:$C$306,">=42",AS_1_Daten_Alterstruktur!$C$8:$C$306,"<=51",AS_1_Daten_Alterstruktur!$D$8:$D$306,C18) -> 0 | I25: 0 | L25: 45-54 | M25: =COUNTIFS(AS_1_Daten_Alterstruktur!$C$8:$C$306,">=40",AS_1_Daten_Alterstruktur!$C$8:$C$306,"<=49",AS_1_Daten_Alterstruktur!$D$8:$D$306,C18) -> 0 | N25: 0
B26: 55 und älter | C26: =COUNTIFS(AS_1_Daten_Alterstruktur!$C$8:$C$306,">=55",AS_1_Daten_Alterstruktur!$D$8:$D$306,C18) -> 0 | D26: 0 | G26: 55 und älter | H26: =COUNTIFS(AS_1_Daten_Alterstruktur!$C$8:$C$306,">=52",AS_1_Daten_Alterstruktur!$D$8:$D$306,$C$3,AS_1_Daten_Alterstruktur!$C$8:$C$306,"<62") -> 2 | I26: 0.1538461538 | L26: 55 und älter | M26: =COUNTIFS(AS_1_Daten_Alterstruktur!$C$8:$C$306,">=50",AS_1_Daten_Alterstruktur!$D$8:$D$306,$C$3,AS_1_Daten_Alterstruktur!$C$8:$C$306,"<60") -> 3 | N26: 0.2142857143
B27: Gesamt | C27: =SUM(C22:C26) -> 11 | D27: 1 | G27: Gesamt | H27: =SUM(H22:H26) -> 13 | I27: 1 | L27: Gesamt | M27: =SUM(M22:M26) -> 14 | N27: 1
A40: 1.3 Allgemeine Personalstruktur, Altersstruktur heute und in Zukunft
B43: Abteilung | C43: =AS_1_Daten_Alterstruktur!C4 -> Verarbeitung
B46: Altersklassen | C46: Gesamt | D46: In % | G46: Altersklassen | H46: Gesamt | I46: In % | L46: Altersklassen | M46: Gesamt | N46: In %
B47: unter 25 | C47: =COUNTIFS(AS_1_Daten_Alterstruktur!$C$8:$C$306,"<25",AS_1_Daten_Alterstruktur!$D$8:$D$306,C43) -> 10 | D47: =C47/$C$52 -> 0.303030303 | G47: unter 25 | H47: =COUNTIFS(AS_1_Daten_Alterstruktur!$C$8:$C$306,"<22",AS_1_Daten_Alterstruktur!$D$8:$D$306,C43) -> 4 | I47: =H47/$H$52 -> 0.16 | L47: unter 25 | M47: =COUNTIFS(AS_1_Daten_Alterstruktur!$C$8:$C$306,"<20",AS_1_Daten_Alterstruktur!$D$8:$D$306,C43) -> 2 | N47: =M47/$M$52 -> 0.08
B48: 25-34 | C48: =COUNTIFS(AS_1_Daten_Alterstruktur!$C$8:$C$306,">=25",AS_1_Daten_Alterstruktur!$C$8:$C$306,"<=34",AS_1_Daten_Alterstruktur!$D$8:$D$306,C43) -> 5 | D48: =C48/$C$52 -> 0.1515151515 | G48: 25-34 | H48: =COUNTIFS(AS_1_Daten_Alterstruktur!$C$8:$C$306,">=22",AS_1_Daten_Alterstruktur!$C$8:$C$306,"<=31",AS_1_Daten_Alterstruktur!$D$8:$D$306,C43) -> 10 | I48: =H48/$H$52 -> 0.4 | L48: 25-34 | M48: =COUNTIFS(AS_1_Daten_Alterstruktur!$C$8:$C$306,">=20",AS_1_Daten_Alterstruktur!$C$8:$C$306,"<=29",AS_1_Daten_Alterstruktur!$D$8:$D$306,C43) -> 10 | N48: =M48/$M$52 -> 0.4
B49: 35-44 | C49: =COUNTIFS(AS_1_Daten_Alterstruktur!$C$8:$C$306,">=35",AS_1_Daten_Alterstruktur!$C$8:$C$306,"<=44",AS_1_Daten_Alterstruktur!$D$8:$D$306,C43) -> 4 | D49: 0.1212121212 | G49: 35-44 | H49: =COUNTIFS(AS_1_Daten_Alterstruktur!$C$8:$C$306,">=32",AS_1_Daten_Alterstruktur!$C$8:$C$306,"<=41",AS_1_Daten_Alterstruktur!$D$8:$D$306,C43) -> 1 | I49: 0.04 | L49: 35-44 | M49: =COUNTIFS(AS_1_Daten_Alterstruktur!$C$8:$C$306,">=30",AS_1_Daten_Alterstruktur!$C$8:$C$306,"<=39",AS_1_Daten_Alterstruktur!$D$8:$D$306,C43) -> 3 | N49: 0.12
B50: 45-54 | C50: =COUNTIFS(AS_1_Daten_Alterstruktur!$C$8:$C$306,">=45",AS_1_Daten_Alterstruktur!$C$8:$C$306,"<=54",AS_1_Daten_Alterstruktur!$D$8:$D$306,C43) -> 2 | D50: 0.06060606061 | G50: 45-54 | H50: =COUNTIFS(AS_1_Daten_Alterstruktur!$C$8:$C$306,">=42",AS_1_Daten_Alterstruktur!$C$8:$C$306,"<=51",AS_1_Daten_Alterstruktur!$D$8:$D$306,C43) -> 6 | I50: 0.24 | L50: 45-54 | M50: =COUNTIFS(AS_1_Daten_Alterstruktur!$C$8:$C$306,">=40",AS_1_Daten_Alterstruktur!$C$8:$C$306,"<=49",AS_1_Daten_Alterstruktur!$D$8:$D$306,C43) -> 4 | N50: 0.16
B51: 55 und älter | C51: =COUNTIFS(AS_1_Daten_Alterstruktur!$C$8:$C$306,">=55",AS_1_Daten_Alterstruktur!$D$8:$D$306,C43) -> 12 | D51: 0.3636363636 | G51: 55 und älter | H51: =COUNTIFS(AS_1_Daten_Alterstruktur!$C$8:$C$306,">=52",AS_1_Daten_Alterstruktur!$D$8:$D$306,$C$43,AS_1_Daten_Alterstruktur!$C$8:$C$306,"<62") -> 4 | I51: 0.16 | L51: 55 und älter | M51: =COUNTIFS(AS_1_Daten_Alterstruktur!$C$8:$C$306,">=50",AS_1_Daten_Alterstruktur!$D$8:$D$306,$C$43,AS_1_Daten_Alterstruktur!$C$8:$C$306,"<60") -> 6 | N51: 0.24
B52: Gesamt | C52: =SUM(C47:C51) -> 33 | D52: 1 | G52: Gesamt | H52: =SUM(H47:H51) -> 25 | I52: 1 | L52: Gesamt | M52: =SUM(M47:M51) -> 25 | N52: 1
B58: Abteilung | C58: =AS_1_Daten_Alterstruktur!D4 -> Digitale Medien
B61: Altersklassen | C61: Gesamt | D61: In % | G61: Altersklassen | H61: Gesamt | I61: In % | L61: Altersklassen | M61: Gesamt | N61: In %
B62: unter 25 | C62: =COUNTIFS(AS_1_Daten_Alterstruktur!$C$8:$C$306,"<25",AS_1_Daten_Alterstruktur!$D$8:$D$306,C58) -> 12 | D62: =C62/$C$67 -> 0.3157894737 | G62: unter 25 | H62: =COUNTIFS(AS_1_Daten_Alterstruktur!$C$8:$C$306,"<22",AS_1_Daten_Alterstruktur!$D$8:$D$306,C58) -> 6 | I62: =H62/$H$67 -> 0.2 | L62: unter 25 | M62: =COUNTIFS(AS_1_Daten_Alterstruktur!$C$8:$C$306,"<20",AS_1_Daten_Alterstruktur!$D$8:$D$306,C58) -> 2 | N62: =M62/$M$67 -> 0.06666666667
B63: 25-34 | C63: =COUNTIFS(AS_1_Daten_Alterstruktur!$C$8:$C$306,">=25",AS_1_Daten_Alterstruktur!$C$8:$C$306,"<=34",AS_1_Daten_Alterstruktur!$D$8:$D$306,C58) -> 8 | D63: =C63/$C$67 -> 0.2105263158 | G63: 25-34 | H63: =COUNTIFS(AS_1_Daten_Alterstruktur!$C$8:$C$306,">=22",AS_1_Daten_Alterstruktur!$C$8:$C$306,"<=31",AS_1_Daten_Alterstruktur!$D$8:$D$306,C58) -> 11 | I63: =H63/$H$67 -> 0.3666666667 | L63: 25-34 | M63: =COUNTIFS(AS_1_Daten_Alterstruktur!$C$8:$C$306,">=20",AS_1_Daten_Alterstruktur!$C$8:$C$306,"<=29",AS_1_Daten_Alterstruktur!$D$8:$D$306,C58) -> 13 | N63: =M63/$M$67 -> 0.4333333333
B64: 35-44 | C64: =COUNTIFS(AS_1_Daten_Alterstruktur!$C$8:$C$306,">=35",AS_1_Daten_Alterstruktur!$C$8:$C$306,"<=44",AS_1_Daten_Alterstruktur!$D$8:$D$306,C58) -> 4 | D64: 0.1052631579 | G64: 35-44 | H64: =COUNTIFS(AS_1_Daten_Alterstruktur!$C$8:$C$306,">=32",AS_1_Daten_Alterstruktur!$C$8:$C$306,"<=41",AS_1_Daten_Alterstruktur!$D$8:$D$306,C58) -> 3 | I64: 0.1 | L64: 35-44 | M64: =COUNTIFS(AS_1_Daten_Alterstruktur!$C$8:$C$306,">=30",AS_1_Daten_Alterstruktur!$C$8:$C$306,"<=39",AS_1_Daten_Alterstruktur!$D$8:$D$306,C58) -> 5 | N64: 0.1666666667
B65: 45-54 | C65: =COUNTIFS(AS_1_Daten_Alterstruktur!$C$8:$C$306,">=45",AS_1_Daten_Alterstruktur!$C$8:$C$306,"<=54",AS_1_Daten_Alterstruktur!$D$8:$D$306,C58) -> 2 | D65: 0.05263157895 | G65: 45-54 | H65: =COUNTIFS(AS_1_Daten_Alterstruktur!$C$8:$C$306,">=42",AS_1_Daten_Alterstruktur!$C$8:$C$306,"<=51",AS_1_Daten_Alterstruktur!$D$8:$D$306,C58) -> 6 | I65: 0.2 | L65: 45-54 | M65: =COUNTIFS(AS_1_Daten_Alterstruktur!$C$8:$C$306,">=40",AS_1_Daten_Alterstruktur!$C$8:$C$306,"<=49",AS_1_Daten_Alterstruktur!$D$8:$D$306,C58) -> 4 | N65: 0.1333333333
B66: 55 und älter | C66: =COUNTIFS(AS_1_Daten_Alterstruktur!$C$8:$C$306,">=55",AS_1_Daten_Alterstruktur!$D$8:$D$306,C58) -> 12 | D66: 0.3157894737 | G66: 55 und älter | H66: =COUNTIFS(AS_1_Daten_Alterstruktur!$C$8:$C$306,">=52",AS_1_Daten_Alterstruktur!$D$8:$D$306,$C$58,AS_1_Daten_Alterstruktur!$C$8:$C$306,"<62") -> 4 | I66: 0.1333333333 | L66: 55 und älter | M66: =COUNTIFS(AS_1_Daten_Alterstruktur!$C$8:$C$306,">=50",AS_1_Daten_Alterstruktur!$D$8:$D$306,$C$58,AS_1_Daten_Alterstruktur!$C$8:$C$306,"<60") -> 6 | N66: 0.2
B67: Gesamt | C67: =SUM(C62:C66) -> 38 | D67: 1 | G67: Gesamt | H67: =SUM(H62:H66) -> 30 | I67: 1 | L67: Gesamt | M67: =SUM(M62:M66) -> 30 | N67: 1
A79: 1.3 Allgemeine Personalstruktur, Altersstruktur heute und in Zukunft
B82: Abteilung | C82: =AS_1_Daten_Alterstruktur!E4 -> Vertrieb
B85: Altersklassen | C85: Gesamt | D85: In % | G85: Altersklassen | H85: Gesamt | I85: In % | L85: Altersklassen | M85: Gesamt | N85: In %
B86: unter 25 | C86: =COUNTIFS(AS_1_Daten_Alterstruktur!$C$8:$C$306,"<25",AS_1_Daten_Alterstruktur!$D$8:$D$306,C82) -> 12 | D86: =C86/$C$91 -> 0.3529411765 | G86: unter 25 | H86: =COUNTIFS(AS_1_Daten_Alterstruktur!$C$8:$C$306,"<22",AS_1_Daten_Alterstruktur!$D$8:$D$306,C82) -> 6 | I86: =H86/$H$91 -> 0.2307692308 | L86: unter 25 | M86: =COUNTIFS(AS_1_Daten_Alterstruktur!$C$8:$C$306,"<20",AS_1_Daten_Alterstruktur!$D$8:$D$306,C82) -> 2 | N86: =M86/$M$91 -> 0.07692307692
B87: 25-34 | C87: =COUNTIFS(AS_1_Daten_Alterstruktur!$C$8:$C$306,">=25",AS_1_Daten_Alterstruktur!$C$8:$C$306,"<=34",AS_1_Daten_Alterstruktur!$D$8:$D$306,C82) -> 6 | D87: =C87/$C$91 -> 0.1764705882 | G87: 25-34 | H87: =COUNTIFS(AS_1_Daten_Alterstruktur!$C$8:$C$306,">=22",AS_1_Daten_Alterstruktur!$C$8:$C$306,"<=31",AS_1_Daten_Alterstruktur!$D$8:$D$306,C82) -> 10 | I87: =H87/$H$91 -> 0.3846153846 | L87: 25-34 | M87: =COUNTIFS(AS_1_Daten_Alterstruktur!$C$8:$C$306,">=20",AS_1_Daten_Alterstruktur!$C$8:$C$306,"<=29",AS_1_Daten_Alterstruktur!$D$8:$D$306,C82) -> 12 | N87: =M87/$M$91 -> 0.4615384615
B88: 35-44 | C88: =COUNTIFS(AS_1_Daten_Alterstruktur!$C$8:$C$306,">=35",AS_1_Daten_Alterstruktur!$C$8:$C$306,"<=44",AS_1_Daten_Alterstruktur!$D$8:$D$306,C82) -> 3 | D88: 0.08823529412 | G88: 35-44 | H88: =COUNTIFS(AS_1_Daten_Alterstruktur!$C$8:$C$306,">=32",AS_1_Daten_Alterstruktur!$C$8:$C$306,"<=41",AS_1_Daten_Alterstruktur!$D$8:$D$306,C82) -> 2 | I88: 0.07692307692 | L88: 35-44 | M88: =COUNTIFS(AS_1_Daten_Alterstruktur!$C$8:$C$306,">=30",AS_1_Daten_Alterstruktur!$C$8:$C$306,"<=39",AS_1_Daten_Alterstruktur!$D$8:$D$306,C82) -> 4 | N88: 0.1538461538
B89: 45-54 | C89: =COUNTIFS(AS_1_Daten_Alterstruktur!$C$8:$C$306,">=45",AS_1_Daten_Alterstruktur!$C$8:$C$306,"<=54",AS_1_Daten_Alterstruktur!$D$8:$D$306,C82) -> 2 | D89: 0.05882352941 | G89: 45-54 | H89: =COUNTIFS(AS_1_Daten_Alterstruktur!$C$8:$C$306,">=42",AS_1_Daten_Alterstruktur!$C$8:$C$306,"<=51",AS_1_Daten_Alterstruktur!$D$8:$D$306,C82) -> 5 | I89: 0.1923076923 | L89: 45-54 | M89: =COUNTIFS(AS_1_Daten_Alterstruktur!$C$8:$C$306,">=40",AS_1_Daten_Alterstruktur!$C$8:$C$306,"<=49",AS_1_Daten_Alterstruktur!$D$8:$D$306,C82) -> 3 | N89: 0.1153846154
B90: 55 und älter | C90: =COUNTIFS(AS_1_Daten_Alterstruktur!$C$8:$C$306,">=55",AS_1_Daten_Alterstruktur!$D$8:$D$306,C82) -> 11 | D90: 0.3235294118 | G90: 55 und älter | H90: =COUNTIFS(AS_1_Daten_Alterstruktur!$C$8:$C$306,">=52",AS_1_Daten_Alterstruktur!$D$8:$D$306,$C$82,AS_1_Daten_Alterstruktur!$C$8:$C$306,"<62") -> 3 | I90: 0.1153846154 | L90: 55 und älter | M90: =COUNTIFS(AS_1_Daten_Alterstruktur!$C$8:$C$306,">=50",AS_1_Daten_Alterstruktur!$D$8:$D$306,$C$82,AS_1_Daten_Alterstruktur!$C$8:$C$306,"<60") -> 5 | N90: 0.1923076923
B91: Gesamt | C91: =SUM(C86:C90) -> 34 | D91: 1 | G91: Gesamt | H91: =SUM(H86:H90) -> 26 | I91: 1 | L91: Gesamt | M91: =SUM(M86:M90) -> 26 | N91: 1
B99: Abteilung | C99: =AS_1_Daten_Alterstruktur!F4 -> Kaufmännisch
B102: Altersklassen | C102: Gesamt | D102: In % | G102: Altersklassen | H102: Gesamt | I102: In % | L102: Altersklassen | M102: Gesamt | N102: In %
B103: unter 25 | C103: =COUNTIFS(AS_1_Daten_Alterstruktur!$C$8:$C$306,"<25",AS_1_Daten_Alterstruktur!$D$8:$D$306,C99) -> 6 | D103: =C103/$C$108 -> 0.3333333333 | G103: unter 25 | H103: =COUNTIFS(AS_1_Daten_Alterstruktur!$C$8:$C$306,"<22",AS_1_Daten_Alterstruktur!$D$8:$D$306,C99) -> 3 | I103: =H103/$H$108 -> 0.2142857143 | L103: unter 25 | M103: =COUNTIFS(AS_1_Daten_Alterstruktur!$C$8:$C$306,"<20",AS_1_Daten_Alterstruktur!$D$8:$D$306,C99) -> 1 | N103: =M103/$M$108 -> 0.07142857143
B104: 25-34 | C104: =COUNTIFS(AS_1_Daten_Alterstruktur!$C$8:$C$306,">=25",AS_1_Daten_Alterstruktur!$C$8:$C$306,"<=34",AS_1_Daten_Alterstruktur!$D$8:$D$306,C99) -> 3 | D104: =C104/$C$108 -> 0.1666666667 | G104: 25-34 | H104: =COUNTIFS(AS_1_Daten_Alterstruktur!$C$8:$C$306,">=22",AS_1_Daten_Alterstruktur!$C$8:$C$306,"<=31",AS_1_Daten_Alterstruktur!$D$8:$D$306,C99) -> 5 | I104: =H104/$H$108 -> 0.3571428571 | L104: 25-34 | M104: =COUNTIFS(AS_1_Daten_Alterstruktur!$C$8:$C$306,">=20",AS_1_Daten_Alterstruktur!$C$8:$C$306,"<=29",AS_1_Daten_Alterstruktur!$D$8:$D$306,C99) -> 6 | N104: =M104/$M$108 -> 0.4285714286
B105: 35-44 | C105: =COUNTIFS(AS_1_Daten_Alterstruktur!$C$8:$C$306,">=35",AS_1_Daten_Alterstruktur!$C$8:$C$306,"<=44",AS_1_Daten_Alterstruktur!$D$8:$D$306,C99) -> 2 | D105: 0.1111111111 | G105: 35-44 | H105: =COUNTIFS(AS_1_Daten_Alterstruktur!$C$8:$C$306,">=32",AS_1_Daten_Alterstruktur!$C$8:$C$306,"<=41",AS_1_Daten_Alterstruktur!$D$8:$D$306,C99) -> 1 | I105: 0.07142857143 | L105: 35-44 | M105: =COUNTIFS(AS_1_Daten_Alterstruktur!$C$8:$C$306,">=30",AS_1_Daten_Alterstruktur!$C$8:$C$306,"<=39",AS_1_Daten_Alterstruktur!$D$8:$D$306,C99) -> 2 | N105: 0.1428571429
B106: 45-54 | C106: =COUNTIFS(AS_1_Daten_Alterstruktur!$C$8:$C$306,">=45",AS_1_Daten_Alterstruktur!$C$8:$C$306,"<=54",AS_1_Daten_Alterstruktur!$D$8:$D$306,C99) -> 1 | D106: 0.05555555556 | G106: 45-54 | H106: =COUNTIFS(AS_1_Daten_Alterstruktur!$C$8:$C$306,">=42",AS_1_Daten_Alterstruktur!$C$8:$C$306,"<=51",AS_1_Daten_Alterstruktur!$D$8:$D$306,C99) -> 3 | I106: 0.2142857143 | L106: 45-54 | M106: =COUNTIFS(AS_1_Daten_Alterstruktur!$C$8:$C$306,">=40",AS_1_Daten_Alterstruktur!$C$8:$C$306,"<=49",AS_1_Daten_Alterstruktur!$D$8:$D$306,C99) -> 2 | N106: 0.1428571429
B107: 55 und älter | C107: =COUNTIFS(AS_1_Daten_Alterstruktur!$C$8:$C$306,">=55",AS_1_Daten_Alterstruktur!$D$8:$D$306,C99) -> 6 | D107: 0.3333333333 | G107: 55 und älter | H107: =COUNTIFS(AS_1_Daten_Alterstruktur!$C$8:$C$306,">=52",AS_1_Daten_Alterstruktur!$D$8:$D$306,$C$99,AS_1_Daten_Alterstruktur!$C$8:$C$306,"<62") -> 2 | I107: 0.1428571429 | L107: 55 und älter | M107: =COUNTIFS(AS_1_Daten_Alterstruktur!$C$8:$C$306,">=50",AS_1_Daten_Alterstruktur!$D$8:$D$306,$C$99,AS_1_Daten_Alterstruktur!$C$8:$C$306,"<60") -> 3 | N107: 0.2142857143
B108: Gesamt | C108: =SUM(C103:C107) -> 18 | D108: 1 | G108: Gesamt | H108: =SUM(H103:H107) -> 14 | I108: 1 | L108: Gesamt | M108: =SUM(M103:M107) -> 14 | N108: 1
